Cogmind - Beta 11 X6 @@@ ROGUE MODE // 2021.08.14 @ 10:27:23 Player: weirdfoe Result: Self-destructed Performance ------------- Evolutions (1) 500 Regions Visited (2) 400 Robots Destroyed (26) 130 Value Destroyed (497) 497 Prototype IDs (3) 60 Alien Tech Used (0) 0 Bonus (8) 8 TOTAL SCORE: 1595 Bonus ------- High Alert Combat Kills 8 Cogmind --------- Core Integrity 360/400 Matter 101/300 Energy 274/280 System Corruption 0% Temperature Cool (0) Movement Rolling (90) Location -9/Materials Parts ------- > --- POWER (1) -------- Cooled Ion Engine > --- PROPULSION (3) --- Armored Wheel Armored Wheel Armored Wheel > --- UTILITY (3) ------ Medium Storage Unit Light Armor Plating Light Armor Plating > --- WEAPON (2) ------- Improved Medium Laser Improved Assault Rifle > --- INVENTORY (10) --- Ion Engine Aluminum Leg Aluminum Leg Aluminum Leg Aluminum Leg Cooling System High-capacity Matter Pod (0) Light Assault Rifle Grenade Launcher Peak State ------------ > --- POWER ------------ Cooled Ion Engine > --- PROPULSION ------- Armored Wheel Armored Wheel Armored Wheel > --- UTILITY ---------- Medium Storage Unit Light Armor Plating Light Armor Plating > --- WEAPON ----------- Improved Medium Laser Improved Assault Rifle > --- INVENTORY -------- Ion Engine Aluminum Leg Aluminum Leg Aluminum Leg Aluminum Leg Cooling System High-capacity Matter Pod Light Assault Rifle Grenade Launcher [Rating: 19] Favorites ----------- Power Ion Engine Engine Ion Engine Propulsion Armored Wheel Leg Aluminum Leg Wheel Armored Wheel Utility Light Armor Plating Storage Small Storage Unit Protection Light Armor Plating Weapon Assault Rifle Energy Gun Improved Medium Laser Ballistic Gun Assault Rifle Ballistic Cannon Light Cannon Launcher Grenade Launcher Build | -11 -10 -9 ------- Run | Scr Mat Mat Slots Evolved 2 | . . 2 Power . | . . . Propulsion 1 | . . 1 Utility 1 | . . 1 Weapon . | . . . Parts Attached 26 | 6 9 11 Power 3 | 1 1 1 Engine 3 | 1 1 1 Core . | . . . Reactor . | . . . Propulsion 9 | 2 3 4 Treads . | . . . Leg 4 | . 3 1 Wheel 5 | 2 . 3 Hover . | . . . Flight . | . . . Utility 6 | 1 2 3 Device . | . . . Storage 2 | 1 . 1 Processor . | . . . Hackware . | . . . Protection 4 | . 2 2 Artifact . | . . . Weapon 8 | 2 3 3 Energy Gun 1 | . . 1 Energy Cannon . | . . . Ballistic Gun 4 | 2 1 1 Ballistic Cannon 1 | . 1 . Launcher 2 | . 1 1 Special Weapon . | . . . Impact Weapon . | . . . Slashing Weapon . | . . . Piercing Weapon . | . . . Special Melee Weapon . | . . . Unidentified Prototypes 3 | . . 3 Parts Lost 2 | . 1 1 Power . | . . . Propulsion 1 | . 1 . Utility 1 | . . 1 Weapon . | . . . Highest Loss Streak 1 | . 1 1 Average Slot Usage (%) 98 | . 97 99 Engine 12 | . 14 11 Leg 8 | . 8 8 Wheel 21 | . 18 24 Storage 12 | . 14 11 Protection 16 | . 12 21 Ballistic Gun 17 | . 25 10 Ballistic Cannon 6 | . 1 10 Naked Turns . | . . . Heaviest Build 30 | 14 18 30 Greatest Support 36 | 26 26 36 Greatest Overweight (x) 2 | . 1 2 Average Overweight (x) . | . . . Largest Inventory Capacity 10 | 8 8 10 Average Capacity 8 | 6 8 9 Most Carried 10 | 3 8 10 Average Carried 6 | 1 5 8 Final Capacity 10 | 8 8 10 Final Carried 9 | 3 7 9 Class Distribution -------------------- 100% | Mutant Dominant Class ---------------- Mutant | -10/Materials Mutant | -9/Materials Resources | -11 -10 -9 ----------- Run | Scr Mat Mat Matter Collected 743 | 239 243 261 Remotely . | . . . Salvage Created 678 | . 422 256 Parts 49 | . 20 29 Haulers Intercepted 2 | . 1 1 Recyclers Shooed 1 | . . 1 Parts Field Recycled . | . . . Retrieved Matter . | . . . Parts Self-Destructed . | . . . Prevented . | . . . Kills | -11 -10 -9 ------- Run | Scr Mat Mat Combat Hostiles Destroyed 19 | . 7 12 Guns 9 | . 7 2 Cannons 2 | . . 2 AOE 8 | . . 8 Classes Destroyed 7 | . 4 3 Worker 1 | . . 1 Builder 1 | . . 1 Hauler 2 | . 1 1 Recycler 2 | . 1 1 Operator 1 | . 1 . Swarmer 10 | . . 10 Grunt 9 | . 7 2 Best Kill Streak 12 | . 6 12 Combat Bots Only 10 | . 4 10 Max Kills in Single Turn 3 | . 1 3 Gunslinging . | . . . Exploded 3 | . . 3 Melee . | . . . Uniques/NPCs Destroyed . | . . . Combat | -11 -10 -9 -------- Run | Scr Mat Mat Damage Taken 787 | . 386 401 Core 115 | . 75 40 Absorbed by Shields . | . . . Core Remaining (%) 85 | 100 70 . Volleys Fired 71 | . 47 24 Largest 2 | . 2 2 Hottest 79 | . 55 79 Shots Fired 129 | . 91 38 Gun 99 | . 84 15 Cannon 17 | . 4 13 Launcher 13 | . 3 10 Special . | . . . Kinetic 115 | . 88 27 Thermal 1 | . . 1 Explosive 13 | . 3 10 Electromagnetic . | . . . Robot Hit Streak 10 | . 8 10 Robot Miss Streak 6 | . 6 2 Penetration Max . | . . . Secondary Targets . | . . . Shots Hit Robots 73 | . 53 20 Core Hits 43 | . 20 23 Critical Kills . | . . . Critical Parts Destroyed . | . . . Critical Strikes . | . . . Melee Attacks . | . . . Impact . | . . . Slashing . | . . . Piercing . | . . . Sneak Attacks . | . . . Combat Hostiles . | . . . Follow-up Attacks . | . . . Damage Inflicted 1524 | . 740 784 Guns 794 | . 665 129 Cannons 159 | . . 159 Explosions 571 | . 75 496 Melee . | . . . Ramming . | . . . Kinetic 953 | . 665 288 Thermal . | . . . Explosive 571 | . 75 496 Electromagnetic . | . . . Impact . | . . . Slashing . | . . . Piercing . | . . . Highest Corruption . | . . . Average Corruption . | . . . Corruption Purged . | . . . Overload Shots . | . . . Overflow Damage 4 | . 4 . Projectiles . | . . . Explosions 4 | . 4 . Melee . | . . . Knockbacks 2 | . . 2 Impact . | . . . Kinetic 2 | . . 2 Secondary . | . . . Self-Inflicted Damage 27 | . 6 21 Shots 3 | . 2 1 Rammed . | . . . Targets Rammed . | . . . Kicked . | . . . Crushed . | . . . Highest Temperature 16 | . 9 16 Average Temperature 4 | . 2 10 Received Heat Transfer 249 | . 207 42 Siege Activations . | . . . Robots Corrupted . | . . . Combat Hostiles . | . . . Parts Fried . | . . . Impact Corruptions . | . . . Robots Melted . | . . . Combat Hostiles . | . . . Parts Melted . | . . . Heat Transferred . | . . . Parts Sabotaged . | . . . Parts Stolen . | . . . Parts Stripped . | . . . Power Chain Reactions . | . . . Missiles Intercepted . | . . . Alert | -11 -10 -9 ------- Run | Scr Mat Mat Peak Influence 482 | . 262 482 Initial 110 | . . 110 Average 149 | . 148 171 Maximum Alert Level 2 | . 1 2 Low Security (%) 72 | 100 65 74 Level 1 23 | . 34 15 Level 2 4 | . . 9 Level 3 . | . . . Level 4 . | . . . Level 5 . | . . . High Security . | . . . Max Security . | . . . Squads Dispatched 4 | . 4 . Investigation . | . . . Extermination . | . . . Reinforcement 4 | . 4 . Assault . | . . . Garrison . | . . . Intercept . | . . . Construction Impeded . | . . . Haulers Reinforced . | . . . Active Scanning Responses . | . . . Cargo Convoy Interrupts . | . . . Stealth | -11 -10 -9 --------- Run | Scr Mat Mat Distress Signals . | . . . Communications Jammed . | . . . Distress Signals . | . . . Times Spotted 35 | . 17 18 Peak Tracking Total 9 | . 4 9 Tactical Retreats 1 | . 1 . Traps | -11 -10 -9 ------- Run | Scr Mat Mat Traps Triggered . | . . . Indirectly . | . . . Trap Hack Attempts . | . . . Triggered . | . . . Disarmed . | . . . Reprogrammed . | . . . Reused . | . . . Traps Extracted . | . . . Installed . | . . . Triggered . | . . . Machines | -11 -10 -9 ---------- Run | Scr Mat Mat Machines Disabled 4 | . 1 3 Max in Single Turn 2 | . 1 2 Machines Sabotaged . | . . . Garrisons Compromised . | . . . Overloaded Fab Kills . | . . . Fab Network Shutdowns . | . . . Hacking | -11 -10 -9 --------- Run | Scr Mat Mat Machines Accessed . | . . . Terminals . | . . . Fabricators . | . . . Repair Stations . | . . . Recycling Units . | . . . Scanalyzers . | . . . Garrison Access . | . . . Total Hacks . | . . . Successful . | . . . Failed . | . . . Catastrophic . | . . . Database Lockouts . | . . . Manual . | . . . Terminals . | . . . Fabricators . | . . . Repair Stations . | . . . Recycling Units . | . . . Scanalyzers . | . . . Garrison Access . | . . . Terminal Hacks . | . . . Fabricator Hacks . | . . . Repair Station Hacks . | . . . Recycling Unit Hacks . | . . . Scanalyzer . | . . . Garrison Access Hacks . | . . . Unauthorized Hacks . | . . . Terminals . | . . . Fabricators . | . . . Repair Stations . | . . . Recycling Units . | . . . Scanalyzers . | . . . Garrison Access . | . . . Data Cores Recovered . | . . . Used . | . . . Hacking Detections . | . . . Full Trace Events . | . . . Feedback Events . | . . . Feedback Blocked . | . . . Robot Schematics Acquired . | . . . Robots Built . | . . . Matter . | . . . Time . | . . . Total Robot Build Rating . | . . . Part Schematics Acquired . | . . . Parts Built . | . . . Matter . | . . . Time . | . . . Total Part Build Rating . | . . . Parts Repaired . | . . . Time . | . . . Parts Recycled . | . . . Recycled Matter . | . . . Retrieved Matter . | . . . Retrieved Components . | . . . Parts Scanalyzed . | . . . Part Schematics Acquired . | . . . Parts Damaged . | . . . Bothacking | -11 -10 -9 ------------ Run | Scr Mat Mat Used RIF Installer . | . . . Robots Hacked . | . . . Non-combat . | . . . Combat . | . . . Robot Hacks Applied . | . . . Relay Couplers Released . | . . . Robots Rewired . | . . . Allies Hacked . | . . . Hacks Repelled . | . . . Allies | -11 -10 -9 -------- Run | Scr Mat Mat Total Allies . | . . . Largest Group . | . . . Highest-Rated Group . | . . . Highest-Rated Ally . | . . . Total Orders . | . . . Ally Attacks . | . . . Total Damage . | . . . Kills . | . . . Allies Corrupted . | . . . Allies Melted . | . . . Intel | -11 -10 -9 ------- Run | Scr Mat Mat Robot Analysis Total . | . . . Derelict Logs Recovered . | . . . Drone Launches . | . . . Drone Recoveries . | . . . Exploration | -11 -10 -9 ------------- Run | Scr Mat Mat Turns Passed 818 | 54 380 384 Spaces Moved 547 | 47 213 287 Core 5 | 5 . . Treads . | . . . Legs 161 | . 88 73 Wheels 381 | 42 125 214 Hover . | . . . Flight . | . . . Fastest Speed 50 | 50 90 90 Average Speed 98 | 88 102 97 Slowest Speed 200 | 100 200 120 Overloaded Moves . | . . . Propulsion Burnouts . | . . . Robots Hopped . | . . . Cave-ins Triggered . | . . . Exploration Rate (%) 26 | 3 54 22 Regions Visited 2 Branch Regions . Pre-discovered Areas . | . . . Known Exits Taken . | . . . Unknown Exits Taken 2 | 1 1 . Scrap Searched . | . . . Spaces Dug . | . . . Terrain Destroyed 56 | . 22 34 Melee . | . . . Projectile . | . . . AOE 56 | . 22 34 Terrain Rammed . | . . . Walls Destroyed . | . . . Machines Disabled . | . . . Actions | -11 -10 -9 --------- Run | Scr Mat Mat Total 691 | 56 282 353 Wait 23 | 1 7 15 Move 545 | 46 212 287 Hop . | . . . Pick Up 12 | 3 2 7 Fast Attach 16 | 6 4 6 Attach 6 | . 2 4 Detach 2 | . 2 . Swap 4 | . 3 1 Drop 12 | . 3 9 Fire 71 | . 47 24 Melee . | . . . Ram . | . . . Kick . | . . . Crush . | . . . Escape Stasis . | . . . Rewire . | . . . Trap . | . . . Miscellaneous . | . . . Route ------- -11/Scrapyard -10/Materials -9/Materials History --------- Turn | Location | Event 16 | -11/Scrapyard | Discovered new exit (range 15) 55 | -11/Scrapyard | Entered Materials 337 | -10/Materials | Build established: Mutant 421 | -10/Materials | Discovered new exit (range 11) 435 | -10/Materials | Entered another Materials area 435 | -9/Materials | Evolved 2 slots: Propulsion x1, Utility x1 819 | -9/Materials | Self-destructed Last Messages --------------- 00807_ K-01 Serf collects debris. 00807_ Acquired Prototype Ballistic Gun. 00807_ Identified Imp. Assault Rifle. 00807_ U-05 Engineer lays Concrete. 00808_ U-05 Engineer builds a Wall. 00809_ U-05 Engineer lays Concrete. 00809_ S-10 Pest destroyed. 00809_ U-05 Engineer lays Concrete. 00811_ K-01 Serf collects debris. 00811_ U-05 Engineer lays Concrete. 00812_ K-01 Serf collects debris. 00812_ U-05 Engineer lays Concrete. 00814_ K-01 Serf collects debris. 00814_ U-05 Engineer lays Concrete. 00815_ K-01 Serf collects debris. 00815_ U-05 Engineer lays Concrete. 00815_ K-01 Serf collects debris. 00816_ U-05 Engineer lays Concrete. 00817_ Acquired Grenade Launcher. 00818_ U-05 Engineer lays Concrete. Map ----- +----------------------------------------------------+ | ?????????????????????????????????????????????????? | | ?????????????????????????????????????????????????? | | ?????????????????????????????????????????????????? | | ?????????????????????????????????????????????????? | | ?????????????????????????????????????????????????? | | ?????????????????????????????????????????????????? | | ?????????????????????????????????????????????????? | | ?????????????????????????????????????????????????? | | ?????????????????????????????????????????????????? | | ?????????????????????????????????????????????????? | | ????????????????? ????????????????????????????? | | ????????????????# ????????????????????????????? | | ????????????????# ????????????????????????????? | | ????????????????# ????????????????????????????? | | ????????????????# #????????????????????????????? | | ????????????????# #????????????????????????????? | | ????????????????# #?#############+## ????????? | | ?????????######## ### #???????? | | ?????????# # ???????? | | ?????????# """ # % #???????? | | ?????????#= """ # """ k#######+??????????????? | | ?????????# """ # """ ##????????????????????? | | ?????????# =* # "" ##????????????????????? | | ?????????# !![=# [ *kk ##????????????????????? | | ?????????####+### u #????????????????????? | | ???####### % [[ u@] #????????????????????? | | a = [ ! ##????????????????????? | | ?######### ! u ! #?????????????????????? | | ?????????# =% #?????????????????????? | | ########## * u #?????????????????????? | | # """ ####?????????????????????? | | + " k #????????????????????????? | | # " #????????????????????????? | | # ##????????????????????????? | | ?# ##??????????????????????????? | | ?# %[ ????????????????????????????? | | ??# """ = ????????????????????????????? | | ??# """ %= #????????????????????????????? | | ######???# ##????????????????????????????? | | ?????????# #????????????????????????????? | | ?????????# """ +????????????????????????????? | | ????????## """ #????????????????????????????? | | ????????# """ ##????????????????????????????? | | ????????# #?????????????????????????????? | | ????????# #?????????????????????????????? | | ????????# """ #?????????????????????????????? | | ?######## """ #?????????????????????????????? | | ?# # """ #?????????????????????????????? | | ?# """ # #?????????????????????????????? | | ?# """ + #?????????????????????????????? | +----------------------------------------------------+ Best States ------------- Heat Dissipation 28 Energy Generation 14 Energy Capacity 280 Matter Stores 300 Matter Capacity 300 Sight Range 16 Terrain Scan Density 10 Armor Coverage 300 Evasion (%) 55 Item Schematics ----------------- None Robot Schematics ------------------ None Fabricated ------------ Nothing Alien Tech Used ----------------- None Achievements -------------- None Challenges ------------ None Game ------ Seed InsulatedTiamatSabre Manual? 0 Play Time 00:10:56 Cumulative 28.3 hours Start 2021.08.14 @ 10:17:32 End 2021.08.14 @ 10:27:23 Sessions 1 Manual Loads 0 Difficulty Rogue Special Mode None Game No. 82 Rogue 82 Adventurer 0 Explorer 0 Win Type - Total 0 Types 0/0/0/0/0/0/0/0/0 Lore% 30 Gallery% 36 Achievement% 24 Wizard Run 0 Options --------- ASCII 0 Keyboard 0 Movement Numpad Keybinds 0 Fullscreen 2 Font 18/TerminusBold Map View 76x50 Tactical HUD 1 Map Filters NONE Filters NONE Steam 1 RUN: 1870904e-a29c-4104-bb10-9036c1240e99